Cogmind - Beta 15 @@@ ROGUE MODE // 2025.05.21 @ 20:53:00 Player: Selene Result: Destroyed by P-70 Sage with High-powered Shock Rifle Performance ------------- Evolutions (5) 2500 Regions Visited (10) 2000 Robots Destroyed (148) 740 Value Destroyed (4751) 4751 Prototype IDs (42) 840 Alien Tech Used (0) 0 Bonus (3367) 3367 TOTAL SCORE: 14198 Bonus ------- High Alert Combat Kills 415 Follower Combat Kills 852 Forged Quantum Companion 1000 Registered with UFD 300 Met Optimus in HQ 500 Met Data Miner 300 Cogmind --------- Core Integrity 0/1000 Matter 221/300 Energy 40/315 System Corruption 23% Temperature Cool (0) Movement Rolling (120) Ox5 Location -5/Factory Parts ------- > --- POWER (1) -------- Neutrino Core > --- PROPULSION (2) --- Overtuned Huge Scrapsphere > --- UTILITY (12) ----- Scrap Suit Advanced Cooling System Huge Storage Unit Enhanced Optical Array Improved Terrain Scan Processor Improved Target Analyzer Improved Weapon Cycler Improved Transmission Jammer Hacking Suite Advanced System Shield > --- WEAPON (2) ------- Overtuned Beamcaster Quantum Companion > --- INVENTORY (25) --- Micro Fission Core Overtuned Huge Scrapsphere Overtuned Huge Scrapsphere Overtuned Huge Scrapsphere Makeshift Microdissipator Network Matter Compressor (0) Structural Scanner Machine Analyzer IFF Parser Advanced Terrain Scan Processor Advanced Recoil Stabilizer ECM Suite Improved Propulsion Shielding Improved Focal Shield Overtuned Beamcaster Heavy Phase Cannon Hypervelocity Coil Gun Hypervelocity Coil Gun Hypervelocity Coil Gun Heavy Shock Bomb Launcher Peak State ------------ > --- POWER ------------ Neutrino Core > --- PROPULSION ------- Overtuned Huge Scrapsphere > --- UTILITY ---------- Scrap Suit Advanced Cooling System Huge Storage Unit Enhanced Optical Array Advanced Terrain Scanner Improved Terrain Scan Processor Improved Target Analyzer Improved Weapon Cycler Improved Transmission Jammer Hacking Suite Advanced System Shield > --- WEAPON ----------- Overtuned Beamcaster Quantum Companion > --- INVENTORY -------- Micro Fission Core Overtuned Huge Scrapsphere Overtuned Huge Scrapsphere Overtuned Huge Scrapsphere Scrap Suit Makeshift Microdissipator Network Matter Compressor Structural Scanner Machine Analyzer IFF Parser Advanced Terrain Scan Processor Advanced Recoil Stabilizer ECM Suite Improved Propulsion Shielding Improved Focal Shield Overtuned Beamcaster Heavy Phase Cannon Hypervelocity Coil Gun Hypervelocity Coil Gun Hypervelocity Coil Gun Heavy Shock Bomb Launcher [Rating: 103] Favorites ----------- Power Fission Core Engine Light Ion Engine Power Core Fission Core Reactor Fusion Reactor Propulsion Wheel Wheel Wheel Utility Huge Storage Unit Device Seismic Detector Storage Huge Storage Unit Processor Enhanced Optical Array Hackware Hacking Suite Protection Enhanced Scrap Shield Weapon Companion Sword Energy Gun Beamcaster Energy Cannon Heavy Phase Cannon Ballistic Gun Light Assault Rifle Ballistic Cannon Antimatter Cannon Launcher Heavy Rocket Launcher Slashing Weapon Companion Sword Build | -11 -10 -10 -10 -9 -6 -6 -6 -6 -5 -5 ------- Run | Yrd Mat Min Sub Scr Fac Low Low Dat Pro Fac Slots Evolved 10 | . . . . . 8 . . . . 2 Power . | . . . . . . . . . . . Propulsion . | . . . . . . . . . . . Utility 10 | . . . . . 8 . . . . 2 Weapon . | . . . . . . . . . . . Parts Attached 158 | 8 11 1 8 9 68 5 4 . 4 40 Power 20 | 2 3 . . . 6 . . . 2 7 Engine 10 | 2 2 . . . 3 . . . 1 2 Core 9 | . 1 . . . 3 . . . 1 4 Reactor 1 | . . . . . . . . . . 1 Propulsion 24 | 2 2 . 3 3 13 . . . . 1 Treads . | . . . . . . . . . . . Leg . | . . . . . . . . . . . Wheel 24 | 2 2 . 3 3 13 . . . . 1 Hover . | . . . . . . . . . . . Flight . | . . . . . . . . . . . Utility 83 | 2 4 . 3 2 36 3 3 . 1 29 Device 42 | 1 1 . 1 1 17 2 1 . 1 17 Storage 4 | 1 1 . 1 1 . . . . . . Processor 16 | . . . . . 10 . 1 . . 5 Hackware 5 | . . . . . 3 . . . . 2 Protection 16 | . 2 . 1 . 6 1 1 . . 5 Artifact . | . . . . . . . . . . . Weapon 31 | 2 2 1 2 4 13 2 1 . 1 3 Energy Gun 8 | . . . . . 4 1 1 . 1 1 Energy Cannon 2 | . . . . . 1 1 . . . . Ballistic Gun 13 | 2 1 1 2 1 5 . . . . 1 Ballistic Cannon 1 | . . . . . 1 . . . . . Launcher 4 | . 1 . . 1 2 . . . . . Special Weapon . | . . . . . . . . . . . Impact Weapon . | . . . . . . . . . . . Slashing Weapon 3 | . . . . 2 . . . . . 1 Piercing Weapon . | . . . . . . . . . . . Special Melee Weapon . | . . . . . . . . . . . Unidentified Prototypes 10 | . 1 . . 1 4 1 . . . 3 Corrupted Parts 3 | . . . . . . . . . . 3 System Corruption 18 | . . . . . . . . . . 18 Parts Lost 69 | . 1 . 5 . 32 3 . . . 28 Power 8 | . . . . . 3 . . . . 5 Propulsion 13 | . 1 . 4 . 8 . . . . . Utility 37 | . . . . . 17 2 . . . 18 Weapon 11 | . . . 1 . 4 1 . . . 5 Highest Loss Streak 7 | . 1 . 2 . 7 2 . . . 7 To Critical Strikes . | . . . . . . . . . . . Average Backups 23 | 3 18 20 23 26 22 23 23 24 24 21 Power 1 | . 1 1 2 2 1 1 2 2 1 . Propulsion 2 | 2 2 3 1 1 2 2 1 1 1 2 Utility 11 | . 9 9 10 12 10 11 12 13 13 13 Weapon 6 | . 4 4 7 7 6 5 6 6 6 4 Tool/Special . | . . . . . . . . . . . Unused Backups 94 | . 10 2 4 21 19 6 4 . 2 26 Power 14 | . 1 . . 5 5 . 1 . 1 1 Propulsion 11 | . 2 . . 1 . 2 1 . . 5 Utility 33 | . 3 2 3 5 7 2 2 . . 9 Weapon 30 | . 4 . 1 10 4 1 . . 1 9 Tool/Special 6 | . . . . . 3 1 . . . 2 Average Slot Usage (%) 92 | . 100 100 99 93 93 83 86 80 86 86 Engine 2 | . 12 14 9 . 1 . . . . . Core 6 | . 1 . 4 14 4 6 6 6 6 4 Wheel 16 | . 28 28 27 28 11 6 6 6 6 5 Device 15 | . 11 14 11 7 18 16 20 20 20 25 Storage 9 | . 14 14 14 13 6 6 6 6 6 5 Processor 12 | . . . . . 22 22 20 20 20 18 Hackware 4 | . . . . . 8 6 6 6 6 7 Protection 3 | . 2 . 2 . 5 6 6 6 6 4 Energy Gun 1 | . . . . . 1 . 6 . . 2 Ballistic Gun 11 | . 28 27 27 19 3 . . . . . Slashing Weapon 4 | . . . . 5 5 5 6 6 6 5 Peak Build Rating 103 | 8 11 10 18 25 72 76 79 78 81 103 Average Rating 47 | 5 9 9 14 18 57 72 77 74 80 91 On Entrance 41 | . 8 9 10 17 23 71 75 79 78 81 Naked Turns . | . . . . . . . . . . . Heaviest Build 214 | 14 51 49 96 214 116 127 116 118 122 126 Greatest Support 32 | 20 26 26 32 30 32 28 28 28 28 28 Greatest Overweight (x) 35 | . 2 1 5 8 35 4 4 4 4 6 Average Overweight (x) 3 | . 1 1 2 4 3 3 4 3 4 5 Largest Inventory Capacity 35 | 8 20 20 25 35 35 25 25 25 25 25 Average Capacity 24 | 7 19 20 24 29 24 25 25 25 25 25 Most Carried 35 | 8 20 20 25 35 33 25 25 25 25 25 Average Carried 24 | 4 18 19 24 28 23 23 24 24 24 23 Final Capacity 35 | 8 20 20 25 35 25 25 25 25 25 25 Final Carried 35 | 8 20 20 25 35 25 25 25 25 25 23 Class Distribution -------------------- 33% | Mutant 28% | Assassin 9% | Derelict-Mutant 9% | Hauler-Mutant 7% | Hacker-Mutant 4% | Scavenger-Mutant Dominant Class ---------------- Mutant | -10/Materials Mutant | -10/Mines Scavenger-Mutant | -10/Subcaves Hauler-Mutant | -9/Scraptown Mutant | -6/Factory Assassin | -6/Lower Caves Assassin | -6/Lower Caves Assassin | -6/Data Miner Assassin | -5/Proximity Caves Assassin | -5/Factory Resources | -11 -10 -10 -10 -9 -6 -6 -6 -6 -5 -5 ----------- Run | Yrd Mat Min Sub Scr Fac Low Low Dat Pro Fac Matter Collected 4166 | 324 263 122 328 100 1330 388 190 . 157 964 Remotely . | . . . . . . . . . . . Salvage Created 6026 | 99 382 92 139 . 2663 706 146 . 145 1654 Parts 326 | 8 36 5 9 . 168 14 3 . 3 80 Haulers Intercepted 2 | . . . . . 1 . . . . 1 Recyclers Shooed 4 | 1 . . . . 3 . . . . . Parts Field Recycled . | . . . . . . . . . . . Retrieved Matter . | . . . . . . . . . . . Parts Self-Destructed 26 | . . . . . . 6 9 . 11 . Prevented 4 | . . . . . . 3 1 . . . Kills | -11 -10 -10 -10 -9 -6 -6 -6 -6 -5 -5 ------- Run | Yrd Mat Min Sub Scr Fac Low Low Dat Pro Fac Combat Hostiles Destroyed 101 | . 12 2 3 . 40 5 . . 3 36 Melee 33 | . . . . . 20 1 . . . 12 Guns 25 | . 12 1 3 . 4 . . . . 5 Cannons 9 | . . . . . 1 1 . . . 7 AOE 32 | . . 1 . . 14 3 . . 3 11 Classes Destroyed 17 | 2 4 . 1 . 7 3 . . . . Worker 15 | . . . . . 11 . . . . 4 Builder 7 | . . . . . 7 . . . . . Tunneler 2 | 2 . . . . . . . . . . Hauler 2 | . . . . . 1 . . . . 1 Recycler 7 | 1 . . . . 6 . . . . . Minesweeper 3 | . . . . . . 2 1 . . . Mechanic 1 | . . . . . 1 . . . . . Operator 2 | . 2 . . . . . . . . . Watcher 8 | . 3 . . . 4 . . . . 1 Swarmer 44 | . 8 . . . 20 . . . . 16 Grunt 26 | . 4 2 . . 5 . . . 3 12 Sentry 5 | . . . . . 5 . . . . . Hunter 6 | . . . . . 4 . . . . 2 Programmer 12 | . . . . . 6 . . . . 6 Subdweller 3 | . . . 3 . . . . . . . Savage 4 | . . . . . . 4 . . . . Mutant 1 | . . . . . . 1 . . . . Best Kill Streak 14 | 2 5 2 1 . 14 3 1 . 3 6 Combat Bots Only 8 | . 5 2 1 . 8 3 . . 3 6 Max Kills in Single Turn 5 | 1 2 1 1 . 5 2 1 . 2 4 Gunslinging 1 | . 1 . . . . . . . . . Exploded 4 | . . 1 . . 3 2 . . 2 4 Melee 2 | . . . . . 2 1 . . . 1 Uniques/NPCs Destroyed . | . . . . . . . . . . . Combat | -11 -10 -10 -10 -9 -6 -6 -6 -6 -5 -5 -------- Run | Yrd Mat Min Sub Scr Fac Low Low Dat Pro Fac Hostile Shots Fired 1042 | . 67 4 29 . 487 57 . . 6 392 Missed 325 | . 18 2 8 . 151 20 . . 3 123 Deflected 9 | . . . . . . . . . . 9 Hits 717 | . 49 2 21 . 336 37 . . 3 269 Melee 6 | . . . . . . 6 . . . . Projectile 711 | . 49 2 21 . 336 31 . . 3 269 AOE 4 | . . . . . . . . . . 4 Critical Strikes 18 | . 1 . . . 2 1 . . . 14 Actively Blocked 1 | . . . . . . . . . . 1 Part Disruptions 1 | . . . . . 1 . . . . . Damage Taken 10800 | . 457 34 493 . 4301 688 80 . 59 4688 Core 1940 | . 107 18 101 . 670 13 15 . . 1016 Absorbed by Shields 482 | . . . . . 232 65 . . . 185 Redirected to Shielding 76 | . . . . . . . . . . 76 Ignored by Resistances 169 | . . . . . . . . . . 169 Regen/Repaired (Parts) 362 | . . . . 173 151 . . . . 38 Core Remaining (%) 42 | 100 . . . 9 . . . . 17 . Volleys Fired 269 | 14 50 3 56 . 42 24 . . 4 76 Largest 2 | 2 2 2 2 . 2 1 . . 1 1 Hottest 116 | 40 40 40 45 . 116 90 . . 39 100 Shots Fired 381 | 28 100 5 82 . 50 25 5 . 5 81 Gun 324 | 28 100 4 82 . 27 9 5 . . 69 Cannon 26 | . . . . . 12 12 . . 2 . Launcher 31 | . . 1 . . 11 4 . . 3 12 Special . | . . . . . . . . . . . Kinetic 283 | 28 100 4 82 . 19 9 . . . 41 Thermal 47 | . . . . . 1 12 5 . 2 27 Explosive 31 | . . 1 . . 11 4 . . 3 12 Electromagnetic 20 | . . . . . 19 . . . . 1 Robot Hit Streak 16 | 5 10 4 15 . 16 5 . . 3 9 Robot Miss Streak 6 | 3 5 . 1 . 5 3 2 . 1 6 Penetration Max 1 | . . . . . 1 . . . . . Secondary Targets 2 | . 1 . 1 . . . . . . . Max Gunslinging Chain 1 | . 1 . 1 . . . . . . . Autonomous 12 | . . . . . . . . . . 12 Shots Hit Robots 372 | 17 62 2 42 . 117 30 5 . 3 94 Core Hits 224 | 5 26 5 10 . 99 15 1 . 8 55 Critical Kills . | . . . . . . . . . . . Critical Parts Destroyed 3 | . . . . . 2 . . . . 1 Critical Strikes 13 | . . . 1 . 2 . . . . 10 Burn 5 | . . . . . . . . . . 5 Destroy 4 | . . . 1 . 2 . . . . 1 Melee Attacks 237 | . . . . . 133 17 7 . 1 79 Impact . | . . . . . . . . . . . Slashing 237 | . . . . . 133 17 7 . 1 79 Piercing . | . . . . . . . . . . . Sneak Attacks 27 | . . . . . 19 2 1 . . 5 Combat Hostiles . | . . . . . . . . . . . Follow-up Attacks 3 | . . . . . 1 . . . . 2 Damage Inflicted 16475 | 173 639 79 285 . 6737 1664 365 . 458 6075 Guns 2346 | 173 639 24 285 . 259 84 . . . 882 Cannons 1594 | . . . . . 210 347 . . . 1037 Explosions 3877 | . . 55 . . 1779 354 . . 458 1231 Melee 8658 | . . . . . 4489 879 365 . . 2925 Ramming . | . . . . . . . . . . . Kinetic 1651 | 173 639 24 285 . 144 84 . . . 302 Thermal 913 | . . . . . . 347 . . . 566 Explosive 3877 | . . 55 . . 1779 354 . . 458 1231 Electromagnetic 339 | . . . . . 325 . . . . 14 Impact . | . . . . . . . . . . . Slashing 8658 | . . . . . 4489 879 365 . . 2925 Piercing . | . . . . . . . . . . . Phasic 1037 | . . . . . . . . . . 1037 Highest Corruption 23 | . . . . . 3 9 9 9 9 23 Average Corruption 8 | . . . . . 2 7 9 9 9 16 Corruption Purged 24 | . . . . . 3 . . . . 21 Corruption Blocked . | . . . . . . . . . . . Effects 276 | . . . . . 52 39 48 6 27 104 Message Errors 74 | . . . . . 12 16 12 1 7 26 Matter Fused 73 | . . . . . 18 6 16 2 4 27 Heat Flow Errors 25 | . . . . . 8 6 1 . 2 8 Energy Discharges 28 | . . . . . 5 3 5 . 3 12 Parts Rejected 7 | . . . . . . 1 . . . 6 Parts Fused 4 | . . . . . . . 1 1 1 1 Data Loss (minor) 26 | . . . . . 5 4 5 1 4 7 Data Loss (major) 14 | . . . . . 2 1 1 1 1 8 Misfires 14 | . . . . . 1 1 5 . 2 5 Alerts 7 | . . . . . 1 1 2 . 2 1 Misdirections 3 | . . . . . . . . . . 3 Weapon Failures 1 | . . . . . . . . . 1 . Overload Shots . | . . . . . . . . . . . Overflow Damage 1535 | . . . . . 290 322 257 . . 666 Projectiles 106 | . . . . . . . . . . 106 Explosions 144 | . . . . . 34 10 . . . 100 Melee 1285 | . . . . . 256 312 257 . . 460 Knockbacks . | . . . . . . . . . . . Impact . | . . . . . . . . . . . Kinetic . | . . . . . . . . . . . Secondary . | . . . . . . . . . . . Self-Inflicted Damage 194 | . . . . . 52 53 . . . 89 Shots 7 | . . . . . 3 2 . . . 2 Rammed . | . . . . . . . . . . . Targets Rammed . | . . . . . . . . . . . Kicked . | . . . . . . . . . . . Crushed . | . . . . . . . . . . . Highest Temperature 344 | . 31 . . . 246 262 257 . 207 344 Average Temperature 80 | . 11 . . . 90 118 115 . 107 94 Received Heat Transfer 1862 | . 108 18 72 . 799 18 . . 18 829 Effects 4 | . . . . . . 3 . . . 1 Interference 4 | . . . . . . 3 . . . 1 Siege Activations . | . . . . . . . . . . . Martial Activations . | . . . . . . . . . . . Shielding Activations . | . . . . . . . . . . . Robots Disrupted 2 | . . . . . 1 . . . . 1 Combat Hostiles 1 | . . . . . 1 . . . . . Robots Corrupted 1 | . . . . . 1 . . . . . Combat Hostiles 1 | . . . . . 1 . . . . . Parts Fried 7 | . . . . . 7 . . . . . Impact Corruptions . | . . . . . . . . . . . Robots Melted 1 | . . . . . . . . . . 1 Combat Hostiles 1 | . . . . . . . . . . 1 Parts Melted 10 | . . . . . 2 . . . . 8 Heat Transferred 1755 | . . . . . . 370 . . . 1385 Parts Sabotaged . | . . . . . . . . . . . Parts Stolen . | . . . . . . . . . . . Parts Stripped . | . . . . . . . . . . . Power Chain Reactions . | . . . . . . . . . . . Alert | -11 -10 -10 -10 -9 -6 -6 -6 -6 -5 -5 ------- Run | Yrd Mat Min Sub Scr Fac Low Low Dat Pro Fac Maximum Alert Level 4 | . . . . . 2 . . . . 4 Low Security (%) 62 | 100 100 100 . . 46 . . . . 56 Level 1 23 | . . . . . 47 . . . . 2 Level 2 4 | . . . . . 6 . . . . 6 Level 3 5 | . . . . . . . . . . 22 Level 4 2 | . . . . . . . . . . 11 Level 5 . | . . . . . . . . . . . High Security . | . . . . . . . . . . . Max Security . | . . . . . . . . . . . Peak Influence 1120 | 5 168 56 . . 473 . . . . 1120 Initial 12 | . . . . . . . . . . 12 Average 223 | . 71 4 . . 231 . . . . 381 Influence Increases 4296 | 15 400 56 . . 1566 66 80 . 232 1881 Destroy 0b10 Robot/C 2300 | . 240 40 . . 840 40 60 . 180 900 Destroy 0b10 Robot/NC 260 | 15 25 . . . 150 20 15 . . 35 Destroy Leader 450 | . 56 10 . . 220 . . . 20 144 Allied During Kill 144 | . . . . . 2 6 5 . 32 99 Successful Hack 263 | . 19 . . . 126 . . . . 118 Disable Machine 285 | . 30 . . . 105 . . . . 150 Destroy Structure 384 | . . 6 . . 108 . . . . 270 Lose Combat Pursuer 210 | . 30 . . . 15 . . . . 165 Influence Decreases 3198 | 15 400 56 . . 1103 515 94 . 211 804 Entered New Map 185 | . . . . . . 172 4 . . 9 Time Decay 2055 | 15 390 56 . . 598 323 70 . 211 392 Lost Part 525 | . 10 . . . 261 20 . . . 234 Lost Ally 249 | . . . . . 60 . 20 . . 169 Purge Threat 184 | . . . . . 184 . . . . . Squads Dispatched 41 | . 1 1 . . 24 . . . . 15 Investigation 17 | . . 1 . . 8 . . . . 8 Extermination 12 | . . . . . 7 . . . . 5 Reinforcement 8 | . 1 . . . 5 . . . . 2 Assault . | . . . . . . . . . . . Garrison 4 | . . . . . 4 . . . . . Intercept . | . . . . . . . . . . . Searches Triggered . | . . . . . . . . . . . Data Miner Redirects 2 | . . . . . . . . . . 2 Construction Impeded 3 | . . . . . 2 . . . . 1 Haulers Reinforced 3 | . . . . . 2 . . . . 1 Active Scanning Responses . | . . . . . . . . . . . Cargo Convoy Interrupts . | . . . . . . . . . . . Stealth | -11 -10 -10 -10 -9 -6 -6 -6 -6 -5 -5 --------- Run | Yrd Mat Min Sub Scr Fac Low Low Dat Pro Fac Distress Signals 8 | . 2 . . . 3 . . . . 3 Communications Jammed 24 | . . . . . . . . . . 24 Distress Signals 24 | . . . . . . . . . . 24 Times Spotted 167 | . 25 1 6 . 56 7 . . 4 68 Peak Tracking Total 9 | . 6 1 2 . 7 5 . . 4 9 Tactical Retreats 11 | . 2 . . . 4 . . . . 5 Traps | -11 -10 -10 -10 -9 -6 -6 -6 -6 -5 -5 ------- Run | Yrd Mat Min Sub Scr Fac Low Low Dat Pro Fac Traps Triggered 9 | . . . . . 4 . 1 . . 4 Indirectly . | . . . . . . . . . . . Trap Hack Attempts . | . . . . . . . . . . . Triggered . | . . . . . . . . . . . Disarmed . | . . . . . . . . . . . Reprogrammed . | . . . . . . . . . . . Reused . | . . . . . . . . . . . Traps Extracted . | . . . . . . . . . . . Installed . | . . . . . . . . . . . Triggered . | . . . . . . . . . . . Machines | -11 -10 -10 -10 -9 -6 -6 -6 -6 -5 -5 ---------- Run | Yrd Mat Min Sub Scr Fac Low Low Dat Pro Fac Machines Disabled 20 | . 2 . 1 . 7 . . . . 10 Max in Single Turn 3 | . 1 . 1 . 2 . . . . 3 Garrison Access 3 | . . . . . 2 . . . . 1 Machines Repaired . | . . . . . . . . . . . Machines Dismantled . | . . . . . . . . . . . Machines Sabotaged . | . . . . . . . . . . . Overloaded Fab Kills . | . . . . . . . . . . . Hacking | -11 -10 -10 -10 -9 -6 -6 -6 -6 -5 -5 --------- Run | Yrd Mat Min Sub Scr Fac Low Low Dat Pro Fac Machines Accessed 66 | . 7 1 1 7 27 1 2 4 . 16 Terminals 24 | . 4 . . . 11 . 1 . . 8 Fabricators 4 | . . . . . 3 . . . . 1 Repair Stations 5 | . 1 . . . 3 . . . . 1 Recycling Units 12 | . 2 . . . 5 . . . . 5 Scanalyzers 3 | . . . . . 3 . . . . . Garrison Access 3 | . . . . . 2 . . . . 1 Total Hacks 221 | . 26 1 1 36 74 1 3 33 . 46 Successful 159 | . 12 1 1 36 47 1 3 33 . 25 Failed 61 | . 14 . . . 26 . . . . 21 Catastrophic 7 | . . . . . 5 . . . . 2 Database Lockouts 1 | . . . . . 1 . . . . . Manual 103 | . 22 . . . 46 . . . . 35 Terminals 82 | . 18 . . . 35 . 2 . . 27 Fabricators 11 | . . . . . 7 . . . . 4 Repair Stations 9 | . 1 . . . 7 . . . . 1 Recycling Units 32 | . 7 . . . 13 . . . . 12 Scanalyzers 9 | . . . . . 9 . . . . . Garrison Access 5 | . . . . . 3 . . . . 2 Terminal Hacks 92 | . 3 1 1 36 10 1 3 33 . 4 Record 41 | . . . . 28 . . 2 11 . . Part Schematic 15 | . . . . . 2 . . 13 . . Robot Schematic 6 | . . . . . . . . 6 . . Robot Analysis 9 | . 2 . . 6 1 . . . . . Prototype ID Bank 4 | . . . . . 1 . . 3 . . Open Door 4 | . . 1 . 1 . 1 1 . . . Terminal Index 2 | . . . . . 1 . . . . 1 Unreport Threat 2 | . . . . . 2 . . . . . Locate Traps 5 | . . . . . 2 . . . . 3 Hauler Manifests 2 | . 1 . . . 1 . . . . . Proto ID Catalog 2 | . . . 1 1 . . . . . . Fabricator Hacks 2 | . . . . . 2 . . . . . Network Status 2 | . . . . . 2 . . . . . Repair Station Hacks 2 | . . . . . 2 . . . . . Scan Component 1 | . . . . . 1 . . . . . Repair 1 | . . . . . 1 . . . . . Recycling Unit Hacks 6 | . 2 . . . 2 . . . . 2 Retrieve Components 6 | . 2 . . . 2 . . . . 2 Scanalyzer 8 | . . . . . 8 . . . . . Insert Component 4 | . . . . . 4 . . . . . Analyze 4 | . . . . . 4 . . . . . Garrison Access Hacks 3 | . . . . . 2 . . . . 1 Seal Access 3 | . . . . . 2 . . . . 1 Unauthorized Hacks 46 | . 7 . . . 21 . . . . 18 Terminals 26 | . 3 . . . 11 . . . . 12 Assimilate 5 | . 1 . . . 2 . . . . 2 Botnet 15 | . 2 . . . 8 . . . . 5 Disrupt 1 | . . . . . . . . . . 1 Skim 5 | . . . . . 1 . . . . 4 Fabricators 7 | . . . . . 5 . . . . 2 Report 1 | . . . . . 1 . . . . . Liberate 4 | . . . . . 3 . . . . 1 Haulers 2 | . . . . . 1 . . . . 1 Repair Stations 5 | . 1 . . . 3 . . . . 1 Mechanics 3 | . 1 . . . 2 . . . . . Patch 2 | . . . . . 1 . . . . 1 Recycling Units 8 | . 3 . . . 2 . . . . 3 Reject 2 | . 2 . . . . . . . . . Mask 1 | . 1 . . . . . . . . . Fedlink 3 | . . . . . 2 . . . . 1 Scrapoids 2 | . . . . . . . . . . 2 Scanalyzers . | . . . . . . . . . . . Garrison Access . | . . . . . . . . . . . Data Cores Recovered 1 | . 1 . . . . . . . . . Used . | . . . . . . . . . . . Hacking Detections 38 | . 5 . . . 22 . . . . 11 Full Trace Events 8 | . . . . . 4 . . . . 4 Feedback Events 2 | . . . . . 2 . . . . . Corruption 1 | . . . . . 1 . . . . . Hackware Fried 1 | . . . . . 1 . . . . . Feedback Blocked . | . . . . . . . . . . . Robot Schematics Acquired 6 | . . . . . . . . 6 . . Robots Built . | . . . . . . . . . . . Authchips . | . . . . . . . . . . . Time . | . . . . . . . . . . . Total Robot Build Rating . | . . . . . . . . . . . Part Schematics Acquired 19 | . . . . . 6 . . 13 . . Parts Built . | . . . . . . . . . . . Authchips . | . . . . . . . . . . . Time . | . . . . . . . . . . . Total Part Build Rating . | . . . . . . . . . . . Parts Repaired 1 | . . . . . 1 . . . . . Time 38 | . . . . . 38 . . . . . Parts Recycled . | . . . . . . . . . . . Recycled Matter . | . . . . . . . . . . . Retrieved Matter . | . . . . . . . . . . . Retrieved Components 23 | . 12 . . . 10 . . . . 1 Parts Scanalyzed 4 | . . . . . 4 . . . . . Part Schematics Acquired 4 | . . . . . 4 . . . . . Parts Damaged . | . . . . . . . . . . . Bothacking | -11 -10 -10 -10 -9 -6 -6 -6 -6 -5 -5 ------------ Run | Yrd Mat Min Sub Scr Fac Low Low Dat Pro Fac Used RIF Installer . | . . . . . . . . . . . Robots Hacked . | . . . . . . . . . . . Non-combat . | . . . . . . . . . . . Combat . | . . . . . . . . . . . Robot Hacks Applied . | . . . . . . . . . . . Relay Couplers Released . | . . . . . . . . . . . Fabnet Peak Effective % . | . . . . . . . . . . . Robots Rewired 4 | . . . . . 1 2 . . . 1 Allies Hacked 3 | . . . . . . . . . . 3 Hacks Repelled . | . . . . . . . . . . . Allies | -11 -10 -10 -10 -9 -6 -6 -6 -6 -5 -5 -------- Run | Yrd Mat Min Sub Scr Fac Low Low Dat Pro Fac Total Allies 28 | . . 3 . . 10 2 . . 1 12 Largest Group 5 | . . 3 3 . 4 2 2 1 1 5 Highest-Rated Group 241 | . . 40 40 . 116 51 51 31 96 241 Highest-Rated Ally 96 | . . 16 16 . 41 31 31 31 96 96 Total Orders 4 | . . . . . . . 4 . . . EXPLORE 3 | . . . . . . . 3 . . . RETURN 1 | . . . . . . . 1 . . . Ally Attacks 228 | . . . 38 . 27 12 19 . 14 118 Total Damage 3991 | . . . 353 . 612 172 356 . 405 2093 Kills 29 | . . . 3 . 3 2 3 . 6 12 Allies Corrupted 3 | . . . . . . . . . . 3 Allies Melted 1 | . . . . . 1 . . . . . Intel | -11 -10 -10 -10 -9 -6 -6 -6 -6 -5 -5 ------- Run | Yrd Mat Min Sub Scr Fac Low Low Dat Pro Fac Active Infowar (turns) 16079 | 53 1223 753 1414 2050 4602 1275 1248 137 831 2493 Optics 9753 | . . . . . 3769 1275 1248 137 831 2493 Sensors 6856 | . . . . . 2269 1275 908 137 831 1436 IFF 521 | . . . . . 521 . . . . . Terrain 5183 | . . . 104 . 169 844 1248 137 831 1850 Structural 1109 | . . . . . 547 . . . . 562 Seismic 7873 | 53 1223 753 1310 2050 2484 . . . . . Jamming 444 | . . . . . . . . . . 444 ECM 436 | . . . . . 434 . . . . 2 Robot Analysis Total 9 | . 2 . . 6 1 . . . . . Derelict Logs Recovered 12 | . . 1 . 5 . 2 2 . 2 . Drone Launches 3 | . . . . . . . 3 . . . Drone Recoveries 1 | . . . . . . . 1 . . . Exploration | -11 -10 -10 -10 -9 -6 -6 -6 -6 -5 -5 ------------- Run | Yrd Mat Min Sub Scr Fac Low Low Dat Pro Fac Turns Passed 18631 | 116 1564 753 1686 3815 4607 1381 1248 137 831 2493 Spaces Moved 11277 | 64 1076 689 1168 2374 2517 818 549 93 503 1426 Core 11 | 3 . . . . 8 . . . . . Treads . | . . . . . . . . . . . Legs . | . . . . . . . . . . . Wheels 11266 | 61 1076 689 1168 2374 2509 818 549 93 503 1426 Hover . | . . . . . . . . . . . Flight . | . . . . . . . . . . . Fastest Speed 50 | 50 80 105 105 90 110 145 160 145 160 110 Average Speed 138 | 78 103 105 128 156 147 152 160 145 160 125 Slowest Speed 1800 | 80 110 105 175 210 1800 160 160 160 160 160 Overloaded Moves . | . . . . . . . . . . . Propulsion Burnouts . | . . . . . . . . . . . Robots Hopped . | . . . . . . . . . . . Potential Cave-ins 1 | . . . . . . . . . . 1 Cave-ins Triggered . | . . . . . . . . . . . Exploration Rate (%) 68 | 4 86 99 52 94 64 83 95 74 69 37 Regions Visited 10 Branch Regions 7 Pre-discovered Areas 4 | . . . . 2 1 . . 1 . . Known Exits Taken 5 | . . . . . 1 1 1 1 1 . Unknown Exits Taken 5 | 1 1 1 1 1 . . . . . . Scrap Searched 23 | . . 1 4 10 . 2 4 . 2 . Spaces Dug 39 | . . . . . 22 . 1 . 1 15 Terrain Destroyed 303 | . . 6 . . 109 45 1 . 31 111 Melee 33 | . . . . . 22 . 1 . 1 9 Projectile 7 | . . . . . . 2 . . 2 3 AOE 263 | . . 6 . . 87 43 . . 28 99 Terrain Rammed . | . . . . . . . . . . . Walls Destroyed . | . . . . . . . . . . . Machines Disabled . | . . . . . . . . . . . Actions | -11 -10 -10 -10 -9 -6 -6 -6 -6 -5 -5 --------- Run | Yrd Mat Min Sub Scr Fac Low Low Dat Pro Fac Total 13651 | 100 1437 717 1286 2498 3194 908 914 95 523 1979 Wait 1201 | 7 257 16 19 . 296 . 339 . 3 264 Move 11267 | 63 1075 688 1167 2373 2516 817 548 92 502 1426 Hop . | . . . . . . . . . . . Pick Up 230 | 8 24 4 18 59 58 11 7 1 3 37 Fast Attach 56 | 7 1 . . 2 21 2 . . . 23 Attach 73 | . 1 . 5 . 34 4 2 1 . 26 Detach 11 | . . . . 2 2 1 . . . 6 Swap 109 | 1 13 2 10 8 43 7 4 . 7 14 Drop 176 | . 16 4 11 54 49 10 7 1 3 21 Fire 269 | 14 50 3 56 . 42 24 . . 4 76 Melee 234 | . . . . . 132 17 7 . 1 77 Ram . | . . . . . . . . . . . Kick . | . . . . . . . . . . . Crush . | . . . . . . . . . . . Escape Stasis . | . . . . . . . . . . . Rewire 25 | . . . . . 1 15 . . . 9 Trap . | . . . . . . . . . . . Miscellaneous . | . . . . . . . . . . . Route ------- -11/Scrapyard -10/Materials (discovered 5 exits: [*Mat x2] / *Min x2 / *Sub) -10/Mines (discovered 3 exits: [*Mat x2] / *Sub) -10/Subcaves -9/Scraptown (discovered 2 exits: *Fac x2) -6/Factory (discovered 4 exits: *Fac x2 / *Low x2) -6/Lower Caves -6/Lower Caves (discovered 2 exits: *Fac / *Dat) -6/Data Miner -5/Proximity Caves -5/Factory (discovered 3 exits: Fac x2 / Ext) History --------- Turn | Location | Event 8 | -11/Scrapyard | Discovered new exit (range 16) 117 | -11/Scrapyard | Entered Materials 212 | -10/Materials | Discovered new exit (range 10) 302 | -10/Materials | Build established: Mutant 717 | -10/Materials | Discovered new exit (range 15) 1039 | -10/Materials | Discovered new exit (range 5) 1051 | -10/Materials | Discovered new exit (range 8) 1140 | -10/Materials | Discovered new exit (range 7) 1681 | -10/Materials | Entered Mines 1752 | -10/Mines | Received a Rocket Launcher from a helpful Derelict 1801 | -10/Mines | Learned Materials stockpile data 2011 | -10/Mines | Discovered new exit (range 14) 2135 | -10/Mines | Discovered new exit (range 6) 2139 | -10/Mines | Assisted by bots powering up and referring to "LRC-V3" 2201 | -10/Mines | Discovered new exit (range 6) 2292 | -10/Mines | Met a Derelict shopkeep closing up shop 2434 | -10/Mines | Entered Subcaves 2434 | -10/Subcaves | Accompanied by 3 allies 2435 | -10/Subcaves | Approached by a straggling Scientist 2466 | -10/Subcaves | Core integrity fell below 50% 2548 | -10/Subcaves | Visited 4L-MR0's lab 2594 | -10/Subcaves | Found Powered Cannon 3123 | -10/Subcaves | Scientist uncovered a shortcut to Scraptown 3163 | -10/Subcaves | Build established: Scavenger-Mutant 3734 | -10/Subcaves | Core integrity fell below 20% 4019 | -10/Subcaves | Build established: Mutant 4120 | -10/Subcaves | Entered Scraptown 4163 | -9/Scraptown | Heard Great Nut preacher, LISTEN AND RECITE! 4286 | -9/Scraptown | Scanned Subdweller tech in exchange for log data 4288 | -9/Scraptown | Learned Research stockpile data 4289 | -9/Scraptown | Learned 12 Factory zone layouts 4291 | -9/Scraptown | Learned Research garrison access intel 4292 | -9/Scraptown | Learned location of 1 exit from Research 4293 | -9/Scraptown | Learned location of Warlord (-5) 4948 | -9/Scraptown | Visited Comm Corps 5016 | -9/Scraptown | Visited CR-KLE's Repair Center 5083 | -9/Scraptown | Visited Fellowship of the Rings 5098 | -9/Scraptown | Visited Bundlers 5103 | -9/Scraptown | Build established: Derelict-Mutant 5195 | -9/Scraptown | Visited Assassins FH 5214 | -9/Scraptown | Visited The Evicted 5238 | -9/Scraptown | Visited Cyclists 5341 | -9/Scraptown | Discovered new exit (range 7) 5457 | -9/Scraptown | Visited UFD Registry 5457 | -9/Scraptown | Registered with UFD as "Flaknuts" 5488 | -9/Scraptown | Visited Curators Association 5575 | -9/Scraptown | Visited LU-1G1's Boring Crew 5629 | -9/Scraptown | Visited Science Guys 5675 | -9/Scraptown | Visited Observation Area 5729 | -9/Scraptown | Visited Sword Containment 5750 | -9/Scraptown | Visited Science Testing Area 5781 | -9/Scraptown | Visited Analyses Database 5838 | -9/Scraptown | Visited DA-N13 Charitable Foundation 5843 | -9/Scraptown | Found DCF Scrap (31 items) 5993 | -9/Scraptown | Delivered Scrap Shield to a Scientist 6444 | -9/Scraptown | Build established: Hauler-Mutant 6741 | -9/Scraptown | Found Scrap Suit 7561 | -9/Scraptown | CR-KLE repaired 6 parts 7819 | -9/Scraptown | Met Optimus 7819 | -9/Scraptown | Accepted into 0bPrime 7930 | -9/Scraptown | Discovered new exit (range 3) 7933 | -9/Scraptown | Civil war broke out across Scraptown 7935 | -9/Scraptown | Entered Factory 7935 | -6/Factory | Evolved 8 slots: Utility x8 7936 | -6/Factory | Identified exit to Lower Caves 8026 | -6/Factory | Loaded intel: 8 recycling unit locations 8056 | -6/Factory | Learned location of Protoforge (-2) 8223 | -6/Factory | Build established: Derelict-Mutant 8524 | -6/Factory | Lost 4 parts (1n3u) 8656 | -6/Factory | Discovered exit to Lower Caves (range 4) 8767 | -6/Factory | Build established: Mutant 8796 | -6/Factory | Lost 4 parts (1n2u1w) 8856 | -6/Factory | Central database locked down 8999 | -6/Factory | Destroyed 7 combat bots 9001 | -6/Factory | Lost 7 parts (2p2n3u) 9645 | -6/Factory | Repaired Imp. Light Armor Plating 10081 | -6/Factory | Garrison activated, responded to threat 10087 | -6/Factory | Build established: Hacker-Mutant 10096 | -6/Factory | Core integrity fell below 50% 10125 | -6/Factory | Lost 5 parts (1p1n2u1w) 10140 | -6/Factory | Destroyed 8 combat bots 10543 | -6/Factory | Discovered new exit (range 19) 10958 | -6/Factory | Discovered new exit (range 16) 11092 | -6/Factory | Hacking Suite fried by hacking feedback 11306 | -6/Factory | Spotted B-75 Beast 11380 | -6/Factory | Build established: Mutant 12151 | -6/Factory | Build established: Assassin 12268 | -6/Factory | Garrison activated, responded to threat 12542 | -6/Factory | Entered Lower Caves 12544 | -6/Lower Caves | UFD Scientist delivered a prototype 12549 | -6/Lower Caves | Found Prototype Protection 12549 | -6/Lower Caves | Identified Enh. Scrap Shield 12805 | -6/Lower Caves | Attacked by a faux Warlord 12851 | -6/Lower Caves | Core integrity fell below 20% 13227 | -6/Lower Caves | Learned 12 Factory zone layouts 13829 | -6/Lower Caves | Learned Factory terminal intel 13835 | -6/Lower Caves | Discovered new exit (range 5) 13837 | -6/Lower Caves | Found DCF Scrap (13 items) 13852 | -6/Lower Caves | Identified exit to Lower Caves 13923 | -6/Lower Caves | Entered another Lower Caves area 13923 | -6/Lower Caves | Accompanied by 2 allies 14003 | -6/Lower Caves | Discovered new exit (range 9) 14346 | -6/Lower Caves | Discovered new exit (range 134) 14360 | -6/Lower Caves | Build established: Mutant 14563 | -6/Lower Caves | Learned Factory emergency access door positions 14688 | -6/Lower Caves | Build established: Assassin 14963 | -6/Lower Caves | Learned Factory security intel 15169 | -6/Lower Caves | Identified exit to Data Miner 15171 | -6/Lower Caves | Entered Data Miner 15171 | -6/Data Miner | Accompanied by 1 ally 15172 | -6/Data Miner | Discovered new exit (range 6) 15191 | -6/Data Miner | Met Data Miner 15231 | -6/Data Miner | Learned location of Section 7 (-2) 15231 | -6/Data Miner | Acquired the access code to Warlord's prototype stash 15255 | -6/Data Miner | Received God Mode back door access code from Data Miner 15307 | -6/Data Miner | Identified exit to Proximity Caves 15308 | -6/Data Miner | Entered Proximity Caves 15308 | -5/Proximity Caves | Accompanied by 1 ally 15411 | -5/Proximity Caves | Learned 8 Factory zone layouts 15528 | -5/Proximity Caves | Identified exit to Factory 15578 | -5/Proximity Caves | Found DCF Scrap (13 items) 15832 | -5/Proximity Caves | Escorted by Enhanced Grunt 16139 | -5/Proximity Caves | Entered Factory 16139 | -5/Factory | Accompanied by 1 ally 16139 | -5/Factory | Evolved 2 slots: Utility x2 16140 | -5/Factory | Identified exit to Factory 16140 | -5/Factory | Identified exit to Extension 16143 | -5/Factory | Loaded intel: 28 terminal locations 16182 | -5/Factory | Found Prototype Device 16182 | -5/Factory | Identified Exp. Thermal Shield 16211 | -5/Factory | Scrapoids reinforcements arrived? 16219 | -5/Factory | Incoming investigation squad redirected 16357 | -5/Factory | Found Corrupted Scrap Suit 16358 | -5/Factory | Lost 5 allies 16358 | -5/Factory | System corruption reached 10% 16605 | -5/Factory | Lost 3 parts (2u1w) 16779 | -5/Factory | Loaded intel: 7 recycling unit locations 16889 | -5/Factory | Lost 5 parts (1p4u) 17113 | -5/Factory | Forged Quantum Companion 17506 | -5/Factory | Spotted B-75 Beast 17558 | -5/Factory | Lost 4 parts (4u) 17752 | -5/Factory | Core integrity fell below 50% 17765 | -5/Factory | Lost 7 parts (1p3u3w) 17921 | -5/Factory | Lost 5 parts (1p3u1w) 18018 | -5/Factory | Scrapoid reinforcements arrived 18020 | -5/Factory | Incoming investigation squad redirected 18037 | -5/Factory | Found Corrupted Scrap Suit 18090 | -5/Factory | Lost 3 allies 18321 | -5/Factory | Core integrity fell below 20% 18351 | -5/Factory | Found Scrap Suit 18588 | -5/Factory | Build established: Scavenger-Scrapper 18632 | -5/Factory | Destroyed by P-70 Sage with High-powered Shock Rifle Last Messages --------------- 18616_ Acquired Quantum Companion. 18619_ R-10 Processor collects Autogun. 18620_ Scrap Suit destroyed. 18620_ Adv. Terrain Scanner destroyed. 18620_ K-01 Serf collects debris. 18620_ U-05 Engineer builds a Wall. 18620_ K-01 Serf cleans the Pressure Siphon. 18624_ K-01 Serf collects debris. 18625_ K-01 Serf cleans the Pressure Siphon. 18627_ W-25 Informer distress signal jammed. 18629_ K-01 Serf cleans the Pressure Siphon. 18629_ W-25 Informer distress signal jammed. Quantum Companion releases a shadow of itself that zips off towards P-70 Sage. 18630_ Destroyed Antigrav System. 18630_ W-25 Informer distress signal jammed. 18631_ K-01 Serf collects debris. 18631_ W-25 Informer distress signal jammed. Map ----- +----------------------------------------------------+ | ##########?###??##?#?##???##?######### | | " " " #########?####?##?##??####??## | | " " " ########?######??#??#??#???#?# """ | | " " " #######?#?#?#?#?#?#######???## """ | | " " " """ ##?#?##?#??#???#??#########??# """ | | " " " """"#?#?#######?#######?#####?#??# | | " " " "F""####????#?######?#?##?####???# """ | | " " " ""####?####?#???################ """ | | " " " """#####?#?##?#???## ] # """ | | " " " "" ##?############## # | | ####?## # #####+### | | ##+################ # ## | | # """ """ ## | | ^ # """ """ ## | | """" """" """" "" + """ """ + | | ^ """" """" """" "" # ## | | """" """" """" T" # """ """ ## | | ^ k "" # """ """ ## | | [[ """" """" """" ^"" # """ """ ## " | | [! """" """" """" # ## " | | """" """" """" !! ############### " | | ! = ####### | | ^ """" """ """%k ! = %! u | | """" """ ""%%% " | | # """" """ """" " | | # !% R @p k " | | # = k % #### " | | # ######### #### ###?## | | # #??###??#u #?## #?#### | | #########+#####????# u u ##?# ###### ## | | #?#?# ######w """"""" ^ ####+######+## | | ?#?## #?##?# """"""" ^ # # | | ##??# """ !!!##?### """""" k # | | ##??# """ !!=#??### """""" # ! = # | | #?### """ !!=#?#?## u # # | | ##### ######= """""" # """"" # | | ???## ""T"" ##???#^% """"" # """"" # | | ?#?## """"" ##?###% """" w # """ # | | #################### """" # # | | % ^ # """"" # | | #################### """" # """"" # | | ####??####?#??#??#?# """" # """ # | | ##???##??####?????## """"" # # | | ?#???? ?????##????# """""" ! ############## | | ??? ??? #????#?#??## #?????#??????# | | ?##??? ?#?#?##?##?## ###??##??#?### | | #?# ?#???##?#####+##+##### ####??#???#??# | | ??# ??????#????# # ###########?#? | | ??# ? ?????????# # #???? | | "???? ?????????# # #???? | +----------------------------------------------------+ Best States ------------- Heat Dissipation 71 Energy Generation 21 Energy Capacity 315 Matter Stores 300 Matter Capacity 300 Sight Range 22 Robot Scan Range 16 Terrain Scan Range 20 Terrain Scan Density 110 ECM Strength 1 Jamming Range 14 Power Amplification 20 Corruption Containment 12 Armor Coverage 800 Resistance: KI 25 Resistance: TH 30 Propulsion Shielding 66 Weapon Cycling 20 Melee Speed Boost 20 Phase Shifting 5 Evasion (%) 45 Melee Accuracy 8 Target Analysis 9 Core Analysis 6 Armor Integrity Analysis 30 Salvage Targeting 2 Offensive Hacking 20 Defensive Hacking 14 Item Schematics ----------------- Adv. Beam Rifle | -6/Factory | Scanalyzed Huge Storage Unit | -6/Factory | Hacked Hcp. Storage Unit | -6/Factory | Hacked Hyp. Gauss Rifle | -6/Factory | Scanalyzed CPS Tube | -6/Factory | Scanalyzed ECM Suite | -6/Factory | Scanalyzed Combat Drone Bay | -6/Data Miner | Free Lgt. Regenerative Plating | -6/Data Miner | Free Enh. Flexi-carbon Leg | -6/Data Miner | Free Exp. Heat Sink | -6/Data Miner | Free Ionic Axe | -6/Data Miner | Free Imp. Gyrokinetic Inverter | -6/Data Miner | Free Adv. Power Amplifier | -6/Data Miner | Free Hardcell Cannon | -6/Data Miner | Free Enh. Gauss Cannon | -6/Data Miner | Free Lgt. Particle Reactor | -6/Data Miner | Free Adv. Target Analyzer | -6/Data Miner | Free Hvy. Disruptor Cannon | -6/Data Miner | Free Fusion Bomb Launcher | -6/Data Miner | Free Robot Schematics ------------------ L-41 Fighter | -6/Data Miner | Free S-27 Virus | -6/Data Miner | Free M-22 Extractor | -6/Data Miner | Free G-67 Veteran | -6/Data Miner | Free Y-64 Sentinel | -6/Data Miner | Free R-10 Processor | -6/Data Miner | Free Fabricated ------------ Nothing Repaired ---------- Imp. Light Armor Plating | 40% | -6/Factory Alien Tech Used ----------------- None Achievements -------------- Ambidextrous Challenges ------------ None Game ------ Seed PhysicsArmorReconfigurator Manual? 0 Play Time 02:35:56 Cumulative 199.0 hours Start 2025.05.21 @ 18:04:44 End 2025.05.21 @ 20:53:00 Sessions 1 Manual Loads 0 Difficulty Rogue Special Mode None Game No. 126 Rogue 122 Adventurer 4 Explorer 0 Win Type - Total 7 Types 6/0/1/0/0/0/0/0/0/0 Lore% 77 Gallery% 68 Achievement% 59 Wizard Run 0 Options --------- Layout 1 ASCII 0 Keyboard 1 Movement Vi Keybinds 1 Fullscreen 2 Font 24/Smallcaps Map View 50x35 Zoom Use 0% Tactical HUD 1 Map Filters NONE Filters NONE Steam 1 RUN: a88aa081-5e0d-4e5e-afa2-43a77e1ec493